bitfinex/quotes_SOLUSD_20250527
["timestamp","ask_amount","ask_price","bid_price","bid_amount"]
[1748310558282,24.37395129,171.97,171.9,130.97715349]
[1748310559010,21.5564566,172.01,171.9,130.97715349]
[1748310559200,21.46644761,171.98,171.9,130.97715349]
[1748310559528,24.37325535,172.01,171.94,26.0]
[1748310559685,24.37325535,172.01,171.98,26.0]
[1748310560025,21.46644761,171.99,171.98,26.0]
[1748310560324,10.17382709,172.01,171.94,60.88]
[1748310560608,21.46644761,171.97,171.94,60.88]
[1748310560809,21.46644761,171.95,171.94,60.88]
[1748310561014,2.90799115,171.94,171.93,40.04]
[1748310561184,18.64964886,172.01,171.93,40.04]
[1748310561185,2.90697674,172.0,171.93,40.04]
[1748310561394,21.46644761,171.97,171.94,26.0]
[1748310561587,21.46644761,171.95,171.94,26.0]
[1748310562501,21.46644761,171.95,171.91,26.0]
[1748310562696,21.46644761,171.92,171.91,26.0]
[1748310563003,24.37477706,171.92,171.91,26.0]
[1748310566539,24.37477706,171.92,171.88,59.1]
[1748310566716,21.46644761,171.89,171.84,76.4728]
[1748310567021,21.46644761,171.89,171.87,26.0]
[1748310567526,21.46644761,171.9,171.87,26.0]
[1748310568513,21.46644761,171.89,171.87,26.0]
[1748310569094,21.46644761,171.91,171.87,26.0]
[1748310569353,2.90799115,171.94,171.87,26.0]
[1748310569613,24.37443876,171.94,171.87,31.8183375]
[1748310569917,21.46644761,171.94,171.87,31.8183375]
[1748310571213,2.9073148,171.98,171.87,31.8183375]
[1748310571419,21.46644761,171.94,171.87,31.8183375]
[1748310573322,24.37449631,171.94,171.87,26.0]
[1748310573515,21.46644761,171.89,171.88,26.0]
[1748310573823,21.46644761,171.9,171.88,26.0]
[1748310574021,21.46644761,171.92,171.88,26.0]
[1748310574323,21.46644761,171.93,171.88,31.81791901]
[1748310574509,24.37449631,171.94,171.88,31.81791901]
[1748310575023,21.46644761,171.92,171.88,26.0]
[1748310576409,21.46644761,171.92,171.88,31.81788098]
[1748310576603,21.46644761,171.93,171.88,31.81788098]
[1748310578231,24.37461092,171.93,171.9,26.0]
[1748310578431,21.46644761,171.92,171.88,26.0]
[1748310579328,24.37487642,171.92,171.86,5.81863225]
[1748310579525,2.90842881,171.92,171.89,26.0]
[1748310579712,24.37487642,171.92,171.89,26.0]
[1748310580531,21.46644761,171.92,171.89,26.0]
[1748310581027,21.46644761,171.92,171.87,5.81825891]
[1748310581218,21.46644761,171.93,171.9,26.0]
[1748310582534,7.26892599,171.97,171.9,26.0]
[1748310582719,21.46644761,171.92,171.9,26.0]
[1748310583534,21.46644761,171.92,171.91,26.0]
[1748310584210,21.46644761,171.93,171.91,26.0]
[1748310584418,21.46644761,171.94,171.91,26.0]
[1748310585112,21.46644761,171.93,171.91,26.0]
[1748310591938,2.9073148,171.98,171.93,26.0]
[1748310591939,21.46644761,171.94,171.93,26.0]
[1748310592642,21.46644761,171.94,171.87,39.96]
[1748310592842,21.46644761,171.88,171.87,39.96]
[1748310593042,2.90874679,171.9,171.89,26.0]
[1748310593223,24.3751944,171.9,171.89,26.0]
[1748310593857,24.37511544,171.9,171.89,26.0]
[1748310596045,21.46644761,171.9,171.89,26.0]
[1748310600160,21.46644761,171.91,171.9,26.0]
[1748310600323,2.90765294,171.96,171.91,26.0]
[1748310600637,21.46644761,171.95,171.91,26.0]
[1748310600830,21.46644761,171.98,171.94,26.0]
[1748310601341,4.06201909,172.0,171.94,26.0]
[1748310601544,6.96903602,172.0,171.95,26.0]
[1748310601861,21.46644761,171.96,171.95,26.0]
[1748310603752,24.37410055,171.96,171.95,26.0]
[1748310606567,24.37410055,171.96,171.94,26.0]
[1748310606748,21.46644761,171.95,171.94,26.0]
[1748310607455,21.46644761,171.95,171.91,26.0]
[1748310607654,21.46644761,171.93,171.91,26.0]
[1748310607850,21.46644761,171.94,171.91,26.0]
[1748310608064,24.37430866,171.95,171.93,26.0]
[1748310608274,21.46644761,171.94,171.93,26.0]
[1748310610660,24.37443876,171.94,171.91,26.0]
[1748310610978,21.46644761,171.92,171.89,26.0]
[1748310611150,21.46644761,171.9,171.89,26.0]
[1748310612080,21.46644761,171.9,171.85,1.5374]
[1748310612287,21.46644761,171.88,171.87,26.0]
[1748310613676,21.46644761,171.89,171.87,26.0]
[1748310614061,2.90871074,171.9,171.87,26.0]
[1748310614409,21.46644761,171.89,171.88,26.0]
[1748310615684,21.46644761,171.89,171.86,26.0]
[1748310615685,24.37528465,171.89,171.86,26.0]
[1748310615979,2.90883704,171.89,171.88,26.0]
[1748310616475,2.90883704,171.89,171.86,26.0]
[1748310616783,7.2710237,171.92,171.86,26.0]
[1748310617083,21.46644761,171.87,171.86,26.0]
[1748310618478,21.46644761,171.88,171.86,26.0]
[1748310619067,21.46644761,171.9,171.86,26.0]
[1748310619981,6.3282,171.94,171.88,26.0]
[1748310620281,21.46644761,171.89,171.88,26.0]
[1748310621683,24.37528465,171.89,171.88,26.0]
[1748310622378,24.37528465,171.89,171.86,26.0]
[1748310622589,21.46644761,171.87,171.86,26.0]
[1748310626089,2.90832945,171.92,171.87,26.0]
[1748310626268,21.46644761,171.9,171.88,26.0]
[1748310627400,21.46644761,171.89,171.88,26.0]
[1748310627986,2.90816029,171.93,171.87,26.0]
[1748310628163,21.46644761,171.89,171.87,26.0]
[1748310628567,21.46644761,171.88,171.87,26.0]
[1748310629284,21.46644761,171.88,171.86,26.0]
[1748310629470,21.46644761,171.87,171.86,26.0]
[1748310630771,24.37562314,171.87,171.86,26.0]
[1748310631596,21.46644761,171.89,171.87,26.0]
[1748310631774,21.46644761,171.9,171.86,26.0]
[1748310631969,39.9,171.96,171.85,5.81902239]
[1748310631970,21.46644761,171.93,171.88,26.0]
[1748310632288,21.46644761,171.94,171.89,74.72]
[1748310633280,21.46644761,171.94,171.92,26.0]
[1748310633695,21.46644761,171.95,171.93,26.0]
[1748310635074,21.46644761,171.94,171.93,26.0]
[1748310635498,21.46644761,171.95,171.92,26.0]
[1748310635794,1.5724,172.03,171.92,31.81648642]
[1748310635795,21.46644761,171.97,171.92,31.81648642]
[1748310637393,2.90697674,172.0,171.89,89.26391418]
[1748310637394,21.46644761,171.96,171.94,26.0]
[1748310638911,7.26679182,172.02,171.94,26.0]
[1748310639082,21.46644761,171.97,171.92,31.8165518]
[1748310639278,21.46644761,171.95,171.89,74.72]
[1748310639588,21.46644761,171.95,171.92,26.0]
[1748310639901,21.46644761,171.96,171.92,26.0]
[1748310640101,21.46644761,171.96,171.93,26.0]
[1748310640403,21.46644761,171.96,171.94,26.0]
[1748310640781,10.17382709,172.01,171.94,26.0]
[1748310640980,21.46644761,171.98,171.96,26.0]
[1748310641182,21.46644761,171.98,171.97,26.0]
[1748310644299,2.90663876,172.02,171.97,26.0]
[1748310644603,21.46644761,171.98,171.97,26.0]
[1748310645702,7.8466,172.03,171.97,26.0]
[1748310646006,21.46644761,171.99,171.97,26.0]
[1748310646803,2.90663876,172.02,171.98,26.0]
[1748310646983,21.46644761,172.0,171.98,26.0]
[1748310647184,2.90663876,172.02,171.98,26.0]
[1748310647483,21.46644761,172.0,171.98,26.0]
[1748310647684,21.46644761,171.99,171.98,26.0]
[1748310648207,21.46644761,172.0,171.98,26.0]
[1748310649187,21.46644761,172.01,171.98,26.0]
[1748310649501,39.82,172.06,171.98,26.0]
[1748310649705,21.46644761,172.02,171.98,26.0]
[1748310650398,24.37317433,172.02,171.98,26.0]
[1748310650694,21.46644761,172.01,171.98,26.0]
[1748310651499,2.9065067,172.03,171.98,26.0]
[1748310651710,21.46644761,172.02,171.98,26.0]
[1748310652312,24.373131,172.02,171.99,26.0]
[1748310654906,21.46644761,172.02,172.0,26.0]
[1748310655090,21.46644761,172.02,172.01,26.0]
[1748310657090,24.37308637,172.02,172.01,26.0]
[1748310658996,31.63968327,172.02,171.95,36.4556]
[1748310659301,21.46644761,171.97,171.96,26.0]
[1748310659605,21.46644761,171.97,171.95,36.4556]
[1748310660103,21.46644761,171.96,171.94,39.7]
[1748310660316,21.46644761,171.95,171.94,39.7]
[1748310660697,24.37426965,171.95,171.94,39.7]
[1748310662426,24.37359337,171.99,171.97,26.0]
[1748310663122,2.90714576,171.99,171.97,26.0]
[1748310663638,21.46644761,171.98,171.97,26.0]
[1748310665033,21.46644761,171.99,171.97,26.0]
[1748310666528,21.46644761,172.0,171.97,60.88]
[1748310667336,21.46644761,171.99,171.97,60.88]
[1748310667917,18.64964886,172.05,171.97,60.88]
[1748310668118,21.46644761,171.99,171.97,60.88]
[1748310669832,6.1789,172.07,171.97,62.5434]
[1748310669833,13.44360276,172.07,171.97,62.5434]
[1748310670036,21.46644761,172.03,171.97,62.5434]
[1748310670223,21.46644761,171.99,171.97,34.88]
[1748310670420,21.46644761,171.98,171.93,1.6634]
[1748310670627,18.64964886,172.05,171.95,26.0]
[1748310670826,10.17087062,172.06,171.95,26.0]
[1748310670827,21.46644761,171.96,171.95,26.0]
[1748310671935,7.26532984,172.05,171.95,26.0]
[1748310672140,21.46644761,171.97,171.95,26.0]
[1748310672525,21.46644761,171.96,171.95,26.0]
[1748310672839,21.46644761,171.97,171.95,26.0]
[1748310674418,21.46644761,171.98,171.97,26.0]
[1748310675445,24.37376241,171.98,171.97,26.0]
[1748310677562,7.2663828,172.03,171.97,26.0]
[1748310677759,21.46644761,171.98,171.97,26.0]
[1748310678352,29.35056217,172.03,171.97,26.0]
[1748310678545,21.46644761,171.98,171.97,26.0]
[1748310679955,24.37376241,171.98,171.97,26.0]
[1748310681748,21.46644761,171.98,171.97,26.0]
[1748310682248,3.28701952,172.02,171.97,85.1]
[1748310682447,21.46644761,172.03,171.97,85.1]
[1748310682755,21.46644761,172.02,171.97,85.1]
[1748310682955,21.46644761,172.03,171.97,90.91486532]
[1748310684137,2.90596303,172.06,171.97,90.91486532]
[1748310684461,21.46644761,172.03,171.97,90.91486532]
[1748310685360,21.46644761,172.01,171.97,85.1]
[1748310685556,21.46644761,172.0,171.97,26.0]
[1748310685933,21.46644761,172.01,171.97,26.0]
[1748310686133,18.64964886,172.05,171.98,26.0]
[1748310686459,21.46644761,172.01,172.0,26.0]
[1748310687138,21.46644761,172.02,172.0,26.0]
[1748310687461,21.46644761,172.01,172.0,26.0]
[1748310688035,2.90680774,172.01,172.0,26.0]
[1748310688257,2.90613193,172.05,172.0,26.0]
[1748310688559,21.46644761,172.01,171.99,26.0]
[1748310688858,21.46644761,172.02,171.99,85.1]
[1748310689362,21.46644761,172.01,171.99,85.1]
[1748310690037,24.37339932,172.01,171.99,85.1]
[1748310690860,2.90695171,172.01,171.99,85.1]
[1748310691158,21.46644761,172.03,171.99,85.1]
[1748310691858,21.46644761,172.02,171.99,85.1]
[1748310692064,24.37311011,172.02,171.99,85.1]
[1748310694361,21.46644761,172.02,171.99,85.1]
[1748310697741,21.46644761,172.03,171.99,85.1]
[1748310698264,2.90596303,172.06,171.99,90.91423484]
[1748310698448,21.46644761,172.04,171.99,90.91423484]
[1748310699148,2.90596303,172.06,171.99,90.91423484]
[1748310699355,21.46644761,172.04,171.99,90.91423484]
[1748310699669,21.46644761,172.03,171.99,85.1]
[1748310705772,21.46644761,172.04,171.99,90.91428714]
[1748310706548,21.46644761,172.03,171.99,85.1]
[1748310707560,21.46644761,172.04,171.99,90.9142623]
[1748310707755,2.90618,172.05,171.99,90.9142623]
[1748310707939,21.46644761,172.04,171.99,90.9142623]
[1748310709079,21.46644761,172.02,171.99,85.1]
[1748310709253,24.37309067,172.02,171.99,85.1]
[1748310709463,21.46644761,172.04,172.03,26.0]
[1748310711467,24.37274847,172.04,172.03,26.0]
[1748310716362,31.63850062,172.04,171.97,59.1]
[1748310716568,21.46644761,171.98,171.97,59.1]
[1748310716772,21.46644761,171.98,171.93,34.86]
[1748310716963,2.90748386,171.97,171.96,26.0]
[1748310717272,21.46644761,171.97,171.96,26.0]
[1748310718680,24.37393147,171.97,171.96,26.0]
[1748310723181,24.37393147,171.97,171.94,26.0]
[1748310723388,21.46644761,171.95,171.94,26.0]
[1748310724881,21.46644761,171.95,171.92,26.0]
[1748310725184,21.46644761,171.93,171.89,123.14]
[1748310725481,21.46644761,171.9,171.89,158.02]
[1748310725986,21.46644761,171.9,171.89,74.34]
[1748310726793,21.46644761,171.9,171.82,6.0849]
[1748310727088,21.46644761,171.9,171.78,60.6817]
[1748310727089,21.46644761,171.83,171.78,60.6817]
[1748310727260,21.46644761,171.79,171.74,10.55044687]
[1748310727460,7.27368174,171.86,171.75,2.90258958]
[1748310727683,21.46644761,171.8,171.76,34.88]
[1748310727871,21.46644761,171.81,171.76,74.34]
[1748310728077,21.46644761,171.81,171.79,26.0]
[1748310728271,21.46644761,171.82,171.79,26.0]
[1748310728591,21.46644761,171.82,171.76,74.34]
[1748310729178,21.46644761,171.81,171.76,74.34]
[1748310729486,2.91015103,171.82,171.76,74.34]
[1748310729487,21.46644761,171.79,171.76,74.34]
[1748310729783,21.46644761,171.79,171.78,26.0]
[1748310730081,21.46644761,171.8,171.78,26.0]
[1748310730885,21.46644761,171.82,171.78,26.0]
[1748310731381,21.46644761,171.82,171.8,26.0]
[1748310731761,2.9097041,171.84,171.8,26.0]
[1748310731962,21.46644761,171.84,171.83,26.0]
[1748310734477,24.37613103,171.84,171.83,26.0]
[1748310735096,24.37613103,171.84,171.76,39.46]
[1748310735270,24.37613103,171.84,171.75,2.90578691]
[1748310735271,21.46644761,171.77,171.71,59.1]
[1748310735470,21.46644761,171.81,171.7,1.653]
[1748310735686,21.46644761,171.74,171.7,1.653]
[1748310735883,21.46644761,171.74,171.72,26.0]
[1748310736383,2.91019149,171.81,171.73,26.0]
[1748310736696,21.46644761,171.78,171.75,26.0]
[1748310737069,2.91019149,171.81,171.75,26.0]
[1748310737070,21.46644761,171.76,171.75,26.0]
[1748310737593,6.0873,171.82,171.75,26.0]
[1748310737775,21.46644761,171.79,171.75,65.48]
[1748310737977,21.46644761,171.78,171.75,65.48]
[1748310738477,21.46644761,171.76,171.75,65.48]
[1748310739397,21.46644761,171.77,171.75,65.48]
[1748310740175,13.3626239,171.82,171.75,65.48]
[1748310740176,2.910294,171.81,171.75,65.48]
[1748310740493,21.46644761,171.79,171.75,65.48]
[1748310742016,21.46644761,171.79,171.75,71.3022952]
[1748310742192,2.910294,171.81,171.75,65.48]
[1748310742500,21.46644761,171.79,171.75,65.48]
[1748310742685,21.46644761,171.79,171.75,71.30233156]
[1748310743281,21.46644761,171.77,171.75,124.58]
[1748310743996,2.90968342,171.84,171.75,124.58]
[1748310744176,21.46644761,171.78,171.75,124.58]
[1748310747297,21.46644761,171.79,171.75,130.402415]
[1748310747799,6.3263,171.86,171.75,130.402415]
[1748310747800,2.90951411,171.85,171.76,1.5205]
[1748310747998,21.46644761,171.84,171.76,1.5205]
[1748310748405,21.46644761,171.83,171.8,26.0]
[1748310748584,21.46644761,171.83,171.81,34.9]
[1748310750605,21.46644761,171.84,171.81,34.9]
[1748310750802,34.87382454,171.9,171.81,34.9]
[1748310750803,2.90931861,171.87,171.81,34.9]
[1748310751101,2.90931861,171.87,171.81,74.32]
[1748310751296,21.46644761,171.84,171.83,26.0]
[1748310754010,21.46644761,171.84,171.81,39.42]
[1748310754011,24.37613103,171.84,171.81,39.42]
[1748310754209,21.46644761,171.82,171.79,59.1]
[1748310754513,21.46644761,171.8,171.79,26.0]
[1748310754688,21.46644761,171.8,171.76,134.9205]
[1748310754887,21.46644761,171.79,171.78,26.0]
[1748310761416,10.18389198,171.84,171.78,26.0]
[1748310761616,2.90968342,171.84,171.79,60.9]
[1748310761805,24.37613103,171.84,171.79,60.9]
[1748310762113,21.46644761,171.84,171.79,60.9]
[1748310762693,39.4,171.89,171.79,60.9]
[1748310763002,21.46644761,171.85,171.79,62.525]
[1748310763518,21.46644761,171.85,171.79,68.34573409]
[1748310763727,2.90883704,171.89,171.79,68.34573409]
[1748310763895,21.46644761,171.86,171.79,68.34573409]
[1748310767301,24.37579629,171.86,171.79,68.34573409]
[1748310767507,21.46644761,171.86,171.79,68.34573409]
[1748310769421,24.37582729,171.86,171.79,68.34573409]
[1748310770105,21.46644761,171.86,171.79,68.34573409]
[1748310770822,2.90883704,171.89,171.79,68.34573409]
[1748310771015,21.46644761,171.88,171.79,273.54573409]
[1748310772800,21.46644761,171.88,171.79,288.09838558]
[1748310773497,21.46644761,171.87,171.79,288.09838558]
[1748310776233,24.37566076,171.87,171.79,238.64573409]
[1748310776416,24.37566076,171.87,171.83,26.0]
[1748310776616,21.46644761,171.86,171.83,124.5]
[1748310776931,24.37566076,171.87,171.83,124.5]
[1748310778128,21.46644761,171.87,171.83,124.5]
[1748310778323,2.90883704,171.89,171.83,124.5]
[1748310778526,21.46644761,171.88,171.83,124.5]
[1748310779233,7.27063479,171.93,171.83,130.31962392]
[1748310779412,2.90816029,171.93,171.83,130.31962392]
[1748310779609,2.90816029,171.93,171.84,1.5424]
[1748310779826,21.46644761,171.91,171.86,26.0]
[1748310780525,21.46644761,171.91,171.86,31.8186792]
[1748310780919,24.37482274,171.92,171.86,31.8186792]
[1748310781116,2.90837513,171.92,171.86,31.8186792]
[1748310781325,24.37465704,171.93,171.86,31.8186792]
[1748310781532,21.46644761,171.92,171.86,31.8186792]
[1748310782138,24.3747961,171.92,171.86,31.8186792]
[1748310782429,21.46644761,171.94,171.86,90.9186792]
[1748310783513,24.37426965,171.95,171.86,90.9186792]
[1748310783713,21.46644761,171.94,171.86,90.9186792]
[1748310783929,24.37426965,171.95,171.86,90.9186792]
[1748310784130,21.46644761,171.95,171.86,90.9186792]
[1748310786645,24.37437294,171.95,171.86,90.9186792]
[1748310787011,6.2838,171.98,171.87,18.64964886]
[1748310787215,2.90735347,171.98,171.91,1.5805]
[1748310787518,21.46644761,171.98,171.94,26.0]
[1748310787726,24.37362485,171.99,171.95,26.0]
[1748310788019,24.37362485,171.99,171.95,85.1]
[1748310788325,21.46644761,171.99,171.95,85.1]
[1748310788536,6.5624,172.03,171.95,85.1]
[1748310788735,21.46644761,172.01,171.95,85.1]
[1748310788935,2.90680638,172.02,171.95,90.9155209]
[1748310789240,21.46644761,172.02,171.95,90.9155209]
[1748310790143,2.90612493,172.06,171.96,1.6659]
[1748310790444,6.4122,172.07,172.01,26.0]
[1748310790445,24.37265024,172.05,172.01,26.0]
[1748310791441,2.90528762,172.1,172.03,26.0]
[1748310791746,21.46644761,172.05,172.03,26.0]
[1748310792238,21.46644761,172.06,172.03,26.0]
[1748310792616,24.3724529,172.06,172.03,26.0]
[1748310793123,21.46644761,172.04,172.01,34.88]
[1748310793422,21.46644761,172.04,172.01,60.88]
[1748310794037,21.46644761,172.04,172.01,26.0]
[1748310794240,21.46644761,172.02,171.97,39.3]
[1748310794446,21.46644761,171.98,171.97,39.3]
[1748310794747,2.90748386,171.97,171.95,26.0]
[1748310794916,21.46644761,171.96,171.95,26.0]
[1748310795430,21.46644761,171.96,171.94,34.88]
[1748310795626,2.90748386,171.97,171.96,26.0]
[1748310795627,21.46644761,171.97,171.96,26.0]
[1748310795945,6.5233,172.04,171.94,60.88]
[1748310795946,21.46644761,171.99,171.95,26.0]
[1748310796841,2.9073148,171.98,171.95,26.0]
[1748310797942,2.9073148,171.98,171.94,34.88]
[1748310797943,21.46644761,172.01,171.97,26.0]
[1748310798242,21.46644761,171.99,171.97,26.0]
[1748310799138,2.9073148,171.98,171.97,26.0]
[1748310799335,24.37376241,171.98,171.97,26.0]
[1748310800141,24.37376241,171.98,171.95,65.3]
[1748310800343,21.46644761,171.97,171.95,65.3]
[1748310801244,2.90765294,171.96,171.95,65.3]
[1748310802347,21.46644761,171.99,171.95,65.3]
[1748310802549,2.90697674,172.0,171.97,26.0]
[1748310802550,21.46644761,171.98,171.97,26.0]
[1748310803749,24.37376241,171.98,171.97,26.0]
[1748310803939,2.9073148,171.98,171.97,26.0]
[1748310804131,24.37376241,171.98,171.97,26.0]
[1748310805455,24.37376241,171.98,171.97,85.1]
[1748310812742,2.9073148,171.98,171.97,85.1]
[1748310815062,24.37376241,171.98,171.97,85.1]
[1748310815261,24.37376241,171.98,171.97,119.98]
[1748310817842,24.37376241,171.98,171.97,85.1]
[1748310818561,24.37376241,171.98,171.95,39.3]
[1748310818746,21.46644761,171.96,171.95,39.3]
[1748310819342,21.46644761,171.96,171.94,59.1]
[1748310819549,21.46644761,171.95,171.94,59.1]
[1748310819862,21.46644761,171.96,171.94,59.1]
[1748310820366,21.46644761,171.95,171.94,59.1]
[1748310820545,24.37426965,171.95,171.94,59.1]
[1748310823062,2.90782204,171.95,171.91,93.98]
[1748310823264,21.46644761,171.96,171.94,26.0]
[1748310825073,24.37424445,171.96,171.94,26.0]
[1748310825275,2.90779684,171.96,171.94,26.0]
[1748310825567,24.37424445,171.96,171.94,26.0]
[1748310826372,21.46644761,171.95,171.94,26.0]
[1748310827470,24.37426965,171.95,171.94,26.0]
[1748310829371,21.46644761,171.96,171.94,26.0]
[1748310830575,21.46644761,171.95,171.94,26.0]
[1748310831680,24.37426965,171.95,171.94,26.0]
[1748310832959,24.37426965,171.95,171.93,34.88]
[1748310834883,24.37426965,171.95,171.93,93.98]
[1748310835281,2.90782204,171.95,171.93,93.98]
[1748310835469,24.37426965,171.95,171.93,93.98]
[1748310837881,2.90697674,172.0,171.93,93.98]
[1748310838185,2.90697674,172.0,171.96,26.0]
[1748310838483,2.90697674,172.0,171.97,34.88]
[1748310838685,21.46644761,171.98,171.97,93.98]
[1748310838871,21.46644761,171.98,171.97,59.1]
[1748310840354,2.90680774,172.01,171.97,59.1]
[1748310840573,21.46644761,171.99,171.97,59.1]
[1748310841385,21.46644761,171.98,171.97,59.1]
[1748310844376,24.37376241,171.98,171.97,59.1]
[1748310847591,21.46644761,171.98,171.97,59.1]
[1748310848290,24.37360355,171.99,171.97,59.1]
[1748310849591,21.46644761,172.0,171.97,59.1]
[1748310850086,24.37291741,172.03,172.0,26.0]
[1748310850294,24.37291741,172.03,172.0,85.1]
[1748310850877,21.46644761,172.01,172.0,59.1]
[1748310851082,21.46644761,172.01,171.97,59.1]
[1748310851301,21.46644761,171.98,171.97,59.1]
[1748310852200,24.37376241,171.98,171.97,59.1]
[1748310853995,21.46644761,171.98,171.97,59.1]
[1748310857300,24.37376241,171.98,171.97,59.1]
[1748310857503,21.46644761,171.99,171.97,59.1]
[1748310857683,2.90663876,172.02,171.97,59.1]
[1748310857886,21.46644761,172.01,171.97,59.1]
[1748310858493,24.37293577,172.03,171.97,64.91488127]
[1748310858699,24.37293577,172.03,171.97,59.1]
[1748310858991,2.90648816,172.03,171.97,64.91485609]
[1748310859301,21.46644761,172.03,172.0,26.0]
[1748310859498,2.90613193,172.05,172.0,60.88]
[1748310859800,21.46644761,172.03,172.0,119.98]
[1748310860191,21.46644761,172.04,172.0,119.98]
[1748310862990,21.46644761,172.03,172.0,119.98]
[1748310868209,24.37283678,172.04,172.0,119.98]
[1748310868408,21.46644761,172.04,172.0,119.98]
[1748310868612,2.90562529,172.08,172.04,26.0]
[1748310868795,2.90562529,172.08,172.04,119.96]
[1748310868999,24.3720729,172.08,172.04,119.96]
[1748310869404,2.90495003,172.12,172.04,119.96]
[1748310869706,21.46644761,172.09,172.04,119.96]
[1748310870422,24.3719785,172.09,172.04,119.96]
[1748310872292,2.90553089,172.09,172.04,85.1]
[1748310872605,24.37257954,172.05,172.04,59.1]
[1748310872917,24.37257954,172.05,172.02,60.86]
[1748310873121,21.46644761,172.04,172.02,60.86]
[1748310875313,21.46644761,172.07,172.02,65.50218179]
[1748310876222,40.7517,172.15,172.02,65.50218179]
[1748310876426,2.90495003,172.12,172.02,130.41531136]
[1748310876601,21.46644761,172.09,172.02,130.41531136]
[1748310876801,21.46644761,172.08,172.02,130.41531136]
[1748310877301,21.46644761,172.06,172.02,119.96]
[1748310878310,21.46644761,172.07,172.02,125.77319763]
[1748310880017,24.37224817,172.07,172.02,125.77319763]
[1748310880226,24.37224817,172.07,172.02,124.69852913]
[1748310880523,24.37224817,172.07,172.02,89.83852913]
[1748310880715,24.37224817,172.07,172.06,26.0]
[1748310880911,24.37224817,172.07,172.03,60.86]
[1748310881113,21.46644761,172.05,172.03,26.0]
[1748310881312,21.46644761,172.05,172.03,85.1]
[1748310884430,24.37246232,172.06,172.03,85.1]
[1748310884731,2.90601471,172.06,172.03,85.1]
[1748310884934,24.37246232,172.06,172.03,85.1]
[1748310887113,21.46644761,172.06,172.03,85.1]
[1748310888234,24.37228579,172.07,172.03,85.1]
[1748310888633,2.90511881,172.11,172.03,85.1]
[1748310888808,21.46644761,172.08,172.03,85.1]
[1748310889131,21.46644761,172.08,172.03,90.91282323]
[1748310889730,24.37207618,172.08,172.03,85.1]
[1748310889919,21.46644761,172.07,172.03,85.1]
[1748310891137,2.90511881,172.11,172.06,26.0]
[1748310891317,2.90511881,172.11,172.06,85.1]
[1748310891318,21.46644761,172.08,172.06,85.1]
[1748310894733,24.37207528,172.08,172.06,85.1]
[1748310894917,21.46644761,172.07,172.06,85.1]
[1748310896921,2.90495003,172.12,172.06,85.1]
[1748310897135,21.46644761,172.08,172.06,85.1]
[1748310898032,21.46644761,172.07,172.06,85.1]
[1748310900244,21.46644761,172.08,172.06,85.1]
[1748310902356,21.46644761,172.08,172.06,119.96]
[1748310903647,21.46644761,172.09,172.06,119.96]
[1748310904853,24.37191642,172.09,172.06,119.96]
[1748310905361,21.46644761,172.08,172.06,119.96]
[1748310906552,21.46644761,172.07,172.06,85.1]
[1748310906739,21.46644761,172.07,172.06,119.96]
[1748310907241,21.46644761,172.07,172.06,85.1]
[1748310908651,24.37224176,172.07,172.06,85.1]
[1748310908951,24.37224176,172.07,172.04,97.96]
[1748310909154,21.46644761,172.05,172.04,97.96]
[1748310909836,21.46644761,172.05,171.98,59.1]
[1748310910037,35.36252839,172.07,171.94,83.64]
[1748310910038,21.46644761,171.99,171.95,38.86]
[1748310910232,21.46644761,171.96,171.91,1.6534]
[1748310910453,21.46644761,171.93,171.91,36.5134]
[1748310910652,21.46644761,171.93,171.92,26.0]
[1748310911646,21.46644761,171.93,171.91,34.86]
[1748310911957,21.46644761,171.92,171.91,34.86]
[1748310912163,21.46644761,171.92,171.91,60.86]